bitfinex/quotes_SOLUSD_20220228
["timestamp","ask_amount","ask_price","bid_price","bid_amount"]
[1646063961957,13.85854385,95.641,95.485,173.2]
[1646063962162,104.6,95.655,95.487,167.25]
[1646063962454,20.44732332,95.651,95.501,167.25]
[1646063962654,20.44732332,95.651,95.503,167.25]
[1646063962854,56.59314366,95.635,95.503,167.25]
[1646063963256,56.59314366,95.635,95.505,167.25]
[1646063963756,56.59314366,95.635,95.507,167.25]
[1646063963960,56.59314366,95.635,95.507,104.6]
[1646063964155,56.59314366,95.635,95.508,23.58046821]
[1646063964556,56.59314366,95.635,95.509,20.833679]
[1646063964960,56.59314366,95.635,95.51,20.833679]
[1646063965359,56.59314366,95.635,95.511,20.833679]
[1646063965762,56.59314366,95.635,95.508,2.74678921]
[1646063965763,56.59314366,95.635,95.512,20.833679]
[1646063965960,104.6,95.634,95.512,20.833679]
[1646063966162,13.85854385,95.634,95.513,20.833679]
[1646063966460,118.45854385,95.633,95.514,44.113979]
[1646063966860,118.45854385,95.632,95.515,20.833679]
[1646063967061,104.6,95.629,95.515,20.833679]
[1646063967264,104.6,95.629,95.516,20.833679]
[1646063967661,62.65,95.626,95.517,20.833679]
[1646063967862,55.9123361,95.61,95.517,20.833679]
[1646063968062,12.65,95.6,95.517,20.833679]
[1646063968262,12.65,95.6,95.518,20.833679]
[1646063968663,13.85854385,95.599,95.519,20.833679]
[1646063969064,13.85854385,95.599,95.52,20.833679]
[1646063969264,104.6,95.598,95.52,20.833679]
[1646063969465,133.24732332,95.598,95.52,20.833679]
[1646063969666,13.85854385,95.597,95.52,20.833679]
[1646063969870,13.85854385,95.597,95.521,20.833679]
[1646063970265,13.85854385,95.597,95.47,48.5376]
[1646063970668,13.85854385,95.597,95.471,20.79893454]
[1646063971069,104.6,95.594,95.471,20.79893454]
[1646063971268,12.65,95.59,95.471,20.79893454]
[1646063971569,104.6,95.589,95.471,20.79893454]
[1646063972568,104.6,95.589,95.455,104.6]
[1646063972766,104.6,95.589,95.454,69.38813454]
[1646063972965,104.6,95.589,95.455,20.79893454]
[1646063974974,167.25,95.571,95.455,20.79893454]
[1646063975169,104.6,95.569,95.455,20.79893454]
[1646063975568,43.63401543,95.57,95.455,20.79893454]
[1646063975970,43.63401543,95.57,95.456,104.6]
[1646063976170,43.63401543,95.57,95.455,20.79893454]
[1646063976370,43.63401543,95.57,95.457,20.79893454]
[1646063976570,77.1192,95.599,95.458,62.65]
[1646063976770,77.1192,95.599,95.461,62.65]
[1646063976970,24.2594,95.61,95.473,62.65]
[1646063977170,13.85854385,95.632,95.488,167.25]
[1646063977371,24.5478,95.632,95.488,167.25]
[1646063977575,58.69228308,95.631,95.49,104.6]
[1646063977978,58.69228308,95.631,95.492,104.6]
[1646063978178,13.85854385,95.63,95.492,104.6]
[1646063978476,58.69228308,95.631,95.494,104.6]
[1646063979075,58.69228308,95.631,95.496,104.6]
[1646063979475,58.69228308,95.631,95.501,104.6]
[1646063979876,58.69228308,95.631,95.503,104.6]
[1646063980278,58.69228308,95.631,95.505,104.6]
[1646063980478,58.69228308,95.631,95.506,62.65]
[1646063980678,329.56716859,95.919,95.509,104.6]
[1646063980877,104.6,95.687,95.519,104.6]
[1646063981078,104.6,95.687,95.521,104.6]
[1646063981580,104.6,95.687,95.523,104.6]
[1646063981777,49.79398292,95.657,95.525,104.6]
[1646063982378,49.79398292,95.657,95.527,104.6]
[1646063982582,71.02130624,95.657,95.527,104.6]
[1646063982779,71.02130624,95.657,95.529,104.6]
[1646063983380,71.02130624,95.657,95.531,104.6]
[1646063983680,160.5302,95.688,95.548,62.65]
[1646063983881,160.5302,95.688,95.551,104.6]
[1646063984080,160.5302,95.688,95.55,12.65]
[1646063984680,161.32852537,95.687,95.549,23.0669]
[1646063985480,180.64918203,95.687,95.549,23.0669]
[1646063986582,180.64918203,95.687,95.549,25.81368921]
[1646063986983,167.25,95.681,95.549,25.81368921]
[1646063987183,167.25,95.681,95.549,23.0669]
[1646063987385,104.6,95.669,95.549,23.0669]
[1646063987589,104.6,95.667,95.549,23.0669]
[1646063987983,104.6,95.641,95.524,22.5688]
[1646063988191,104.6,95.639,95.524,22.5688]
[1646063988584,104.6,95.639,95.525,20.85494626]
[1646063989187,60.22069918,95.64,95.525,20.85494626]
[1646063989386,60.22069918,95.64,95.526,6.0]
[1646063989886,60.22069918,95.64,95.528,104.6]
[1646063990089,60.22069918,95.64,95.531,104.6]
[1646063990286,60.22069918,95.64,95.53,12.65]
[1646063990687,60.22069918,95.64,95.532,107.34678921]
[1646063991086,60.22069918,95.64,95.534,104.6]
[1646063991487,60.22069918,95.64,95.536,104.6]
[1646063991887,60.22069918,95.64,95.537,23.60785828]
[1646063992289,60.22069918,95.64,95.538,20.86106907]
[1646063992591,60.22069918,95.64,95.539,24.5023]
[1646063992987,60.22069918,95.64,95.54,20.86106907]
[1646063993990,44.47888999,95.667,95.54,20.86106907]
[1646063993991,23.9137,95.667,95.541,104.6]
[1646063994408,23.9137,95.667,95.542,2.74678921]
[1646063994613,22.7148,95.688,95.543,104.6]
[1646063995010,59.83605976,95.686,95.545,104.6]
[1646063995511,59.83605976,95.686,95.547,104.6]
[1646063995909,59.83605976,95.686,95.549,104.6]
[1646063996310,59.83605976,95.686,95.551,104.6]
[1646063996710,59.83605976,95.686,95.553,104.6]
[1646063997113,59.83605976,95.686,95.555,104.6]
[1646063997311,59.83605976,95.686,95.556,127.2589]
[1646063997515,59.83605976,95.686,95.556,150.86675828]
[1646063997918,59.83605976,95.686,95.558,104.6]
[1646063998114,59.83605976,95.686,95.558,167.25]
[1646063998313,59.83605976,95.686,95.56,167.25]
[1646063998519,20.56518999,95.706,95.56,167.25]
[1646063998720,20.56518999,95.706,95.562,167.25]
[1646063998915,45.5258,95.719,95.562,167.25]
[1646063999214,45.5258,95.719,95.564,167.25]
[1646063999416,58.51034397,95.718,95.564,167.25]
[1646063999616,79.07553396,95.718,95.566,167.25]
[1646063999814,79.07553396,95.718,95.571,104.6]
[1646064000015,20.56518999,95.717,95.57,12.65]
[1646064000217,20.56518999,95.717,95.572,2.74678921]
[1646064000816,20.56518999,95.717,95.574,104.6]
[1646064001216,20.56518999,95.717,95.575,128.26244215]
[1646064003021,58.51034397,95.718,95.593,2.74678921]
[1646064003217,58.51034397,95.718,95.593,23.66244215]
[1646064003618,20.56518999,95.731,95.594,23.66244215]
[1646064003820,104.6,95.734,95.594,23.66244215]
[1646064004018,104.6,95.734,95.595,23.66244215]
[1646064004422,104.6,95.734,95.596,23.66244215]
[1646064004620,19.78518999,95.757,95.61,12.65]
[1646064004621,104.6,95.732,95.61,12.65]
[1646064004823,104.6,95.732,95.611,24.7923]
[1646064005222,104.6,95.732,95.612,20.91565294]
[1646064005421,104.6,95.732,95.612,23.66244215]
[1646064005820,104.6,95.732,95.612,20.91565294]
[1646064006021,104.6,95.732,95.613,20.91565294]
[1646064006421,104.6,95.732,95.612,20.91565294]
[1646064006822,104.6,95.732,95.613,20.91565294]
[1646064007323,104.6,95.732,95.612,20.91565294]
[1646064008926,104.6,95.732,95.613,26.58006267]
[1646064009126,104.6,95.744,95.613,26.58006267]
[1646064009328,47.3382,95.749,95.613,23.83327346]
[1646064009524,104.6,95.748,95.614,20.91565294]
[1646064009727,104.6,95.748,95.614,23.66244215]
[1646064009927,104.6,95.748,95.613,8.42]
[1646064009928,12.65,95.77,95.615,20.91565294]
[1646064010125,62.65,95.79,95.615,50.38024296]
[1646064010325,62.65,95.784,95.616,25.97048921]
[1646064010627,104.6,95.781,95.63,12.65]
[1646064010827,64.68756264,95.808,95.63,12.65]
[1646064011025,18.98066264,95.791,95.631,2.74678921]
[1646064011226,43.43610431,95.79,95.631,2.74678921]
[1646064011425,43.43610431,95.79,95.632,46.9245]
[1646064011826,18.98066264,95.806,95.633,2.74678921]
[1646064012028,15.90732449,95.823,95.633,80.97073974]
[1646064012327,18.98066264,95.846,95.64,158.15]
[1646064012530,17.76732931,95.861,95.651,104.6]
[1646064012727,48.3765,95.866,95.653,104.6]
[1646064012927,75.81157819,95.86,95.653,110.87]
[1646064013146,75.81157819,95.86,95.658,62.65]
[1646064013147,88.46157819,95.86,95.658,62.65]
[1646064013331,88.46157819,95.86,95.671,167.25]
[1646064013332,72.5542537,95.86,95.671,167.25]
[1646064013528,59.9042537,95.86,95.681,104.6]
[1646064013927,59.9042537,95.86,95.687,104.6]
[1646064014128,59.9042537,95.86,95.709,104.6]
[1646064014329,59.9042537,95.86,95.721,104.6]
[1646064014530,59.9042537,95.86,95.72,12.65]
[1646064014929,17.03422714,95.859,95.72,12.65]
[1646064015131,17.03422714,95.859,95.688,16.26728386]
[1646064015331,59.9042537,95.86,95.7,12.65]
[1646064015531,59.9042537,95.86,95.701,62.65]
[1646064015729,59.9042537,95.86,95.719,62.65]
[1646064015932,59.9042537,95.86,95.731,167.25]
[1646064016530,59.9042537,95.86,95.733,167.25]
[1646064016934,59.9042537,95.86,95.735,167.25]
[1646064017334,58.3642537,95.86,95.737,104.6]
[1646064017534,58.3642537,95.86,95.736,2.74678921]
[1646064017735,58.3642537,95.86,95.719,15.5486]
[1646064017736,58.3642537,95.86,95.741,104.6]
[1646064017935,58.3642537,95.86,95.74,12.65]
[1646064018539,58.3642537,95.86,95.741,104.6]
[1646064018935,58.3642537,95.86,95.752,62.65]
[1646064019136,58.3642537,95.86,95.76,12.65]
[1646064020557,58.3642537,95.86,95.761,62.65]
[1646064020738,58.3642537,95.86,95.76,12.65]
[1646064020938,58.3642537,95.86,95.761,2.74678921]
[1646064021145,58.3642537,95.86,95.76,12.65]
[1646064021737,58.3642537,95.86,95.761,104.6]
[1646064022139,58.3642537,95.86,95.76,12.65]
[1646064022738,58.3642537,95.86,95.741,104.6]
[1646064022939,58.3642537,95.86,95.74,12.65]
[1646064023339,58.3642537,95.86,95.741,24.45032037]
[1646064023740,58.3642537,95.86,95.742,104.6]
[1646064023938,58.3642537,95.86,95.751,62.65]
[1646064024139,58.3642537,95.86,95.778,104.6]
[1646064024339,58.3642537,95.86,95.79,12.65]
[1646064024939,58.3642537,95.86,95.766,104.6]
[1646064025138,58.3642537,95.86,95.77,12.65]
[1646064025339,58.3642537,95.86,95.771,104.6]
[1646064025540,58.3642537,95.86,95.77,12.65]
[1646064025741,58.3642537,95.86,95.754,15.6504]
[1646064025742,58.3642537,95.86,95.75,12.65]
[1646064025941,58.3642537,95.86,95.751,104.6]
[1646064026140,58.3642537,95.86,95.751,62.65]
[1646064026341,58.3642537,95.86,95.751,65.39678921]
[1646064026539,24.8275,95.918,95.752,2.74678921]
[1646064026839,24.8275,95.918,95.762,104.6]
[1646064027039,24.8275,95.918,95.772,104.6]
[1646064027240,24.8275,95.918,95.78,12.65]
[1646064027642,49.39220378,95.888,95.78,12.65]
[1646064027940,20.76428776,95.915,95.78,12.65]
[1646064028143,33.337125,95.939,95.781,18.81161435]
[1646064028342,33.337125,95.939,95.781,68.2172583]
[1646064028542,33.337125,95.939,95.782,130.8672583]
[1646064028945,60.70971554,95.888,95.783,149.96308261]
[1646064029143,60.70971554,95.888,95.783,123.41161435]
[1646064029348,60.70971554,95.888,95.785,104.6]
[1646064029543,60.70971554,95.888,95.789,104.6]
[1646064029744,60.70971554,95.888,95.8,12.65]
[1646064030644,17.336125,95.939,95.804,62.65]
[1646064030845,17.336125,95.939,95.809,167.25]
[1646064031049,17.336125,95.939,95.801,18.81161435]
[1646064031050,17.336125,95.939,95.821,104.6]
[1646064031247,17.336125,95.939,95.83,12.65]
[1646064031455,43.60881066,95.902,95.84,12.65]
[1646064033249,17.336125,95.939,95.84,12.65]
[1646064033448,17.336125,95.939,95.841,107.34678921]
[1646064033648,17.336125,95.939,95.841,2.74678921]
[1646064033847,17.336125,95.939,95.84,12.65]
[1646064034249,46.45738325,95.938,95.841,167.25]
[1646064034447,46.45738325,95.938,95.841,104.6]
[1646064034649,0.25,95.86,95.84,14.5914918]
[1646064034850,0.25,95.86,95.84,30.1265918]
[1646064035049,46.45738325,95.938,95.84,15.5351]
[1646064035249,46.45738325,95.938,95.85,12.65]
[1646064035449,17.336125,95.939,95.85,12.65]
[1646064035668,17.336125,95.939,95.851,14.5914918]
[1646064035867,17.336125,95.939,95.851,64.18409102]
[1646064036069,17.336125,95.939,95.851,39.56813489]
[1646064036267,17.336125,95.939,95.852,14.5914918]
[1646064036468,48.62554927,95.938,95.852,17.33828101]
[1646064036869,48.62554927,95.938,95.85,12.65]
[1646064037971,48.42554927,95.938,95.858,62.65]
[1646064038172,48.42554927,95.938,95.871,104.6]
[1646064038370,48.42554927,95.938,95.88,12.65]
[1646064038570,48.42554927,95.938,95.87,12.65]
[1646064039370,48.42554927,95.938,95.871,6.0]
[1646064039971,48.42554927,95.938,95.87,12.65]
[1646064040169,48.42554927,95.938,95.85,12.65]
[1646064040370,48.42554927,95.938,95.851,6.0]
[1646064040571,48.42554927,95.938,95.815,2.74678921]
[1646064040775,54.21554927,95.938,95.815,2.74678921]
[1646064040973,14.20274613,95.937,95.8,12.65]
[1646064041174,14.20274613,95.937,95.801,104.6]
[1646064041372,22.895,95.936,95.801,104.6]
[1646064041971,22.895,95.936,95.809,104.6]
[1646064042172,22.895,95.936,95.811,104.6]
[1646064042472,22.895,95.936,95.827,104.6]
[1646064042671,22.895,95.936,95.82,12.65]
[1646064042873,22.895,95.936,95.81,12.65]
[1646064044094,47.71409819,95.936,95.81,12.65]
[1646064044876,104.6,95.935,95.81,12.65]
[1646064045079,47.71409819,95.936,95.799,23.3234]
[1646064045080,104.6,95.929,95.799,23.3234]
[1646064045283,12.65,95.93,95.799,23.3234]
[1646064045683,37.46909819,95.93,95.8,6.0]
[1646064046285,12.65,95.93,95.801,62.65]
[1646064046484,22.895,95.936,95.801,62.65]
[1646064046683,22.895,95.936,95.8,6.0]
[1646064046886,22.895,95.936,95.81,12.65]
[1646064047285,129.41909819,95.935,95.8,6.0]
[1646064047491,104.6,95.931,95.77,12.65]
[1646064047685,12.65,95.92,95.77,12.65]
[1646064047884,34.7653016,95.934,95.771,6.0]
[1646064047885,12.65,95.91,95.771,6.0]
[1646064048087,12.65,95.9,95.769,46.4634]
[1646064048284,12.65,95.89,95.769,46.4634]
[1646064048485,12.65,95.89,95.691,10.89505325]
[1646064048685,76.8969,95.889,95.72,12.65]
[1646064048891,76.8969,95.889,95.698,22.8558]
[1646064048892,229.6,95.887,95.709,70.17122]
[1646064049086,104.6,95.885,95.709,70.17122]
[1646064049287,104.6,95.869,95.709,70.17122]
[1646064049488,104.6,95.859,95.709,70.17122]
[1646064049685,53.29591833,95.856,95.709,70.17122]
[1646064049886,104.6,95.855,95.709,70.17122]
[1646064050088,141.92446853,95.855,95.67,12.65]
[1646064050292,104.6,95.853,95.67,12.65]
[1646064050487,12.65,95.84,95.671,6.0]
[1646064050689,72.47464154,95.839,95.671,6.0]
[1646064051088,87.91632616,95.839,95.671,6.0]
[1646064051302,72.47464154,95.839,95.671,6.0]
[1646064051689,72.47464154,95.839,95.672,2.74678921]
[1646064051889,72.47464154,95.839,95.671,6.0]
[1646064052288,72.47464154,95.839,95.672,30.64094955]
[1646064052690,10.32185794,95.838,95.673,11.84158429]
[1646064053092,104.6,95.837,95.671,6.0]
[1646064053291,35.14095613,95.838,95.671,6.0]
[1646064053292,10.32185794,95.838,95.671,6.0]
[1646064053491,36.2472263,95.837,95.671,6.0]
[1646064053694,10.32185794,95.838,95.671,13.84]
[1646064054092,21.91920653,95.837,95.671,13.84]
[1646064054292,22.9858,95.836,95.671,13.84]
[1646064054895,22.9858,95.836,95.672,23.1048]
[1646064055093,24.81909819,95.835,95.672,23.1048]
[1646064055694,22.9858,95.836,95.673,62.65]
[1646064055895,22.9858,95.836,95.674,104.6]
[1646064056295,10.32185794,95.835,95.674,104.6]
[1646064056895,24.81909819,95.834,95.674,104.6]
[1646064057095,24.81909819,95.834,95.673,104.6]
[1646064057496,24.81909819,95.834,95.679,167.25]
[1646064057694,104.6,95.833,95.691,104.6]
[1646064057896,117.25,95.83,95.69,12.65]
[1646064058196,12.65,95.83,95.691,104.6]
[1646064058395,24.81909819,95.829,95.691,104.6]
[1646064058995,10.32185794,95.835,95.693,104.6]
[1646064059395,10.32185794,95.835,95.692,48.1361]
[1646064059396,167.25,95.834,95.692,48.1361]
[1646064059597,59.43538834,95.819,95.692,48.1361]
[1646064059899,23.6131,95.818,95.692,48.1361]
[1646064060296,33.93495794,95.818,95.69,12.65]
[1646064060496,22.83443152,95.817,95.67,12.65]
[1646064060697,104.6,95.816,95.67,12.65]
[1646064061296,104.6,95.81,95.67,12.65]
[1646064061496,104.6,95.799,95.67,12.65]
[1646064061698,167.25,95.791,95.651,45.1661]
[1646064061903,117.25,95.79,95.652,6.0]
[1646064062098,99.99358575,95.798,95.652,6.0]
[1646064062601,104.6,95.797,95.652,6.0]
[1646064062800,104.6,95.793,95.652,6.0]
[1646064062998,22.83443152,95.797,95.652,6.0]
[1646064062999,167.25,95.779,95.652,6.0]
[1646064063202,104.6,95.769,95.617,10.9179673]
[1646064063402,1.78083012,95.768,95.617,10.9179673]
[1646064063600,104.6,95.767,95.617,10.9179673]
[1646064063801,62.65,95.764,95.617,10.9179673]
[1646064064004,104.6,95.749,95.617,10.9179673]
[1646064064201,104.6,95.739,95.617,10.9179673]
[1646064064401,104.6,95.729,95.617,10.9179673]
[1646064064602,162.22108727,95.729,95.566,47.5035]
[1646064064803,104.6,95.727,95.566,47.5035]
[1646064065003,1.35513501,95.726,95.571,10.92444996]
[1646064065206,24.18956653,95.726,95.571,10.92444996]
[1646064065406,106.12297616,95.725,95.571,10.92444996]
[1646064065605,12.65,95.71,95.571,10.92444996]
[1646064065803,50.3506862,95.709,95.571,10.92444996]
[1646064066003,1.70951932,95.708,95.56,35.5312]
[1646064066204,1.3578247,95.706,95.56,35.5312]
[1646064066603,1.3578247,95.706,95.561,6.0]
[1646064067203,1.3578247,95.706,95.562,2.74678921]
[1646064067503,1.3578247,95.706,95.547,10.92492722]
[1646064067504,1.3578247,95.706,95.543,2.73419428]
[1646064067708,104.6,95.704,95.538,2.51291008]
[1646064067904,12.65,95.69,95.544,20.04983588]
[1646064068104,105.63351401,95.689,95.544,20.04983588]
[1646064068303,1.81009529,95.688,95.516,27.53932219]
[1646064068503,29.64687919,95.688,95.516,27.53932219]
[1646064068706,18.70831709,95.687,95.538,6.0]
[1646064068904,1.78952668,95.686,95.538,6.0]
[1646064069105,51.74403099,95.686,95.538,6.0]
[1646064069327,19.00841613,95.685,95.538,6.0]
[1646064069530,66.76591,95.684,95.516,24.8933]
[1646064069731,104.6,95.667,95.51,26.83938295]
[1646064069932,127.1564,95.666,95.476,22.9938]
[1646064070135,127.1564,95.666,95.467,10.93228445]
[1646064070136,0.6,95.64,95.467,10.93228445]
[1646064070341,104.6,95.629,95.433,21.86602783]
[1646064070534,104.6,95.609,95.433,21.86602783]
[1646064070743,12.65,95.6,95.424,45.9275]
[1646064070940,72.6643,95.599,95.424,45.9275]
[1646064071135,2.05250134,95.598,95.425,20.25711788]
[1646064071341,2.05250134,95.598,95.426,6.0]
[1646064071537,22.21430753,95.597,95.426,6.0]
[1646064071737,104.6,95.596,95.426,6.0]
[1646064071943,167.25,95.595,95.426,6.0]
[1646064072138,104.6,95.579,95.426,6.0]
[1646064072338,2.00701861,95.579,95.426,6.0]
[1646064072538,47.91474759,95.578,95.426,6.0]
[1646064072738,78.32064183,95.578,95.426,6.0]
[1646064073042,19.46523472,95.577,95.426,6.0]
[1646064073238,2.22139602,95.576,95.424,45.9275]
[1646064073440,19.55864311,95.576,95.424,45.9275]
[1646064073640,2.22074244,95.575,95.424,45.9275]
[1646064073844,2.00636368,95.574,95.424,45.9275]
[1646064074045,12.65,95.56,95.424,45.9275]
[1646064074240,59.28418047,95.559,95.416,23.5924]
[1646064074439,2.24175896,95.558,95.416,23.5924]
[1646064075042,2.24175896,95.558,95.42,12.65]
[1646064075246,2.24175896,95.558,95.421,6.0]
[1646064075840,2.74678921,95.557,95.421,6.0]
[1646064076247,1.76939823,95.556,95.421,6.0]
[1646064076841,2.74678921,95.555,95.421,6.0]
[1646064078043,1.76939823,95.556,95.422,104.6]
[1646064078245,10.32185794,95.557,95.423,2.07809022]
[1646064078445,10.32185794,95.557,95.431,62.65]
[1646064078643,10.32185794,95.557,95.424,2.11205758]
[1646064078644,10.32185794,95.557,95.444,104.6]
[1646064078845,5.48883464,95.557,95.451,167.25]
[1646064079144,46.3178,95.627,95.453,167.25]
[1646064079343,46.3178,95.627,95.455,167.25]
[1646064079545,1.70592295,95.626,95.456,2.63490985]
[1646064079743,1.70592295,95.626,95.457,167.25]
[1646064079944,1.70592295,95.626,95.457,197.8912]
[1646064080145,55.42787737,95.642,95.46,2.71610246]
[1646064080345,55.42787737,95.642,95.459,167.25]
[1646064080346,55.42787737,95.642,95.471,167.25]
[1646064080566,2.24457577,95.641,95.473,167.25]
[1646064080748,2.24457577,95.641,95.474,2.69250495]
[1646064081154,2.74678921,95.645,95.475,167.25]
[1646064081348,1.98223996,95.658,95.481,167.25]
[1646064081548,10.92963721,95.742,95.491,167.25]
[1646064081549,79.7961,95.669,95.491,167.25]
[1646064081748,1.97109508,95.667,95.493,167.25]
[1646064081947,53.63394625,95.666,95.494,2.32018973]
[1646064082150,12.65,95.7,95.501,104.6]
[1646064082347,24.99340087,95.704,95.511,62.65]
[1646064082548,2.74678921,95.709,95.521,167.25]
[1646064082749,4.83365538,95.709,95.532,2.14895632]
[1646064082950,4.83365538,95.709,95.534,167.25]
[1646064083148,59.49476048,95.708,95.535,2.22129207]
[1646064083547,1.80988157,95.707,95.536,169.99678921]
[1646064083753,1.80988157,95.707,95.551,167.25]
[1646064083952,1.80988157,95.707,95.553,104.6]
[1646064084153,25.89141719,95.706,95.553,104.6]
[1646064084351,2.03615618,95.704,95.553,104.6]
[1646064084554,2.03615618,95.704,95.554,2.74678921]
[1646064084754,2.03615618,95.704,95.555,104.6]
[1646064084952,2.03615618,95.704,95.571,104.6]
[1646064085155,2.03615618,95.704,95.58,12.65]
[1646064085555,2.74678921,95.703,95.581,104.6]
[1646064085757,2.03615618,95.704,95.581,107.34678921]
[1646064085957,2.03615618,95.704,95.582,2.74678921]
[1646064086358,2.03615618,95.704,95.58,12.65]
[1646064086557,117.25,95.7,95.58,12.65]
[1646064086860,1.80228158,95.699,95.566,46.9586]
[1646064087060,104.6,95.698,95.566,46.9586]
[1646064087260,1.88298026,95.697,95.566,46.9586]
[1646064087659,23.14462798,95.696,95.566,46.9586]
[1646064087860,1.99435055,95.695,95.566,46.9586]
[1646064088075,12.65,95.68,95.566,46.9586]
[1646064088280,61.50907205,95.679,95.566,46.9586]
[1646064088484,1.82503479,95.678,95.566,46.9586]
[1646064088881,1.82503479,95.678,95.567,104.6]
[1646064089087,1.82503479,95.678,95.569,104.6]
[1646064089285,1.82503479,95.678,95.568,6.0]
[1646064089684,1.82503479,95.678,95.552,23.0888]
[1646064089992,2.74678921,95.677,95.553,6.0]
[1646064090282,2.74678921,95.677,95.554,104.6]
[1646064090483,2.74678921,95.677,95.553,6.0]
[1646064090892,2.74678921,95.677,95.552,23.0888]
[1646064091484,25.89141719,95.677,95.552,23.0888]
[1646064091686,1.97217322,95.675,95.552,23.0888]
[1646064091884,56.30516755,95.659,95.553,2.74678921]
[1646064092085,2.18903414,95.658,95.552,23.0888]
[1646064093690,2.10355773,95.656,95.533,47.4931]
[1646064093992,2.10355773,95.656,95.494,23.4622]
[1646064094191,1.67566217,95.654,95.495,6.0]
[1646064094388,117.25,95.64,95.495,6.0]
[1646064094589,55.13282791,95.638,95.495,6.0]
[1646064094889,1.97432541,95.637,95.495,6.0]
[1646064095091,4.72111462,95.637,95.494,23.4622]
[1646064095289,4.72111462,95.637,95.495,62.65]
[1646064095489,1.97432541,95.637,95.497,62.65]
[1646064095690,2.74678921,95.636,95.498,167.25]
[1646064096588,2.74678921,95.636,95.497,104.6]
[1646064096990,2.74678921,95.636,95.499,104.6]
[1646064097193,1.97432541,95.637,95.504,62.65]
[1646064097392,1.97432541,95.637,95.509,104.6]
[1646064097991,1.97432541,95.637,95.51,2.74678921]
[1646064099193,23.14462798,95.636,95.51,2.74678921]
[1646064099394,2.22462399,95.635,95.512,104.6]
[1646064099593,106.82462399,95.635,95.511,23.4236]
[1646064099793,25.11255953,95.634,95.511,23.4236]
[1646064099994,12.65,95.62,95.511,23.4236]
[1646064100196,52.6896125,95.619,95.511,23.4236]
[1646064100395,158.15,95.73,95.521,122.65]
[1646064100594,1.43941171,95.767,95.571,167.25]
[1646064100895,1.49534341,95.796,95.668,104.6]
[1646064101095,1.49534341,95.796,95.67,12.65]
[1646064101298,50.88933747,95.795,95.67,12.65]
[1646064101697,1.8067526,95.793,95.67,12.65]
[1646064101893,104.6,95.793,95.67,12.65]
[1646064102095,104.6,95.789,95.667,21.86762217]
[1646064102496,167.25,95.781,95.667,21.86762217]
[1646064102696,104.6,95.769,95.667,21.86762217]
[1646064102894,1.78386292,95.768,95.667,21.86762217]
[1646064103093,12.65,95.77,95.667,21.86762217]
[1646064103094,167.25,95.761,95.667,21.86762217]
[1646064103294,153.03044101,95.76,95.667,21.86762217]
[1646064103497,168.84034172,95.759,95.667,21.86762217]
[1646064103694,1.63533376,95.758,95.667,21.86762217]
[1646064105696,1.60457414,95.757,95.667,21.86762217]
[1646064106095,1.60457414,95.757,95.63,12.65]
[1646064107298,7.90457414,95.757,95.63,12.65]
[1646064107699,7.90457414,95.757,95.631,18.02880079]
[1646064108199,7.90457414,95.757,95.63,12.65]
[1646064108601,1.60457414,95.757,95.63,12.65]
[1646064109026,186.2657,95.82,95.631,104.6]
[1646064109210,15.6074,95.806,95.631,122.62880079]
[1646064109404,15.7814,95.854,95.641,167.25]
[1646064109603,74.2104,95.902,95.661,104.6]
[1646064109804,47.7493,95.889,95.681,104.6]
[1646064110007,51.91519321,95.888,95.691,104.6]
[1646064110204,1.45761294,95.887,95.693,104.6]